[Event "DEN-ch KK 2020"]
[Site "Svendborg"]
[Date "2020.10.12"]
[Round "1.12"]
[White "Hald Falkesgaard, Jeppe"]
[Black "Haubro, Sigfred"]
[Result "0-1"]
[ECO "D31"]
[WhiteElo "1984"]
[BlackElo "2163"]
[Annotator "NA"]
[PlyCount "71"]
[EventDate "2020.10.09"]
[EventType "tourn"]
[EventCountry "DEN"]
[SourceTitle "playchess.com"]
[Source "ChessBase"]
[SourceQuality "1"]
[TimeControl "40/5400+30:1800+30"]

1. d4 {[%emt 0:00:00]} d5 {[%emt 0:00:00]} 2. c4 {[%emt 0:00:00]} e6 {[%emt 0:00:00]} 3. Nc3 {[%emt 0:00:00]} f5 {[%emt 0:00:15]} 4. e3 {[%emt 0:01:38]} Nf6 {[%emt 0:00:11]} 5. Bd3 {[%emt 0:00:35]} c6 {[%emt 0:00:31]} 6. Nge2 {[%emt 0:00:29]} Be7 {[%emt 0:02:01]} 7. O-O {[%emt 0:00:49]} O-O {[%emt 0:00:09]} 8. Qc2 {[%emt 0:04:51]} Bd7 {[%emt 0:03:28]} 9. f3 {[%emt 0:04:14]} Kh8 {[%emt 0:15:15]} 10. e4 {[%emt 0:23:35]} Na6 {[%emt 0:03:19]} 11. a3 {[%emt 0:01:05]} dxc4 {[%emt 0:00:39]} 12. Bxc4 {[%emt 0:00:23]} Nc7 {[%emt 0:00:12]} 13. Bf4 {[%emt 0:06:45]} Rc8 {[%emt 0:05:46]} 14. h3 {[%emt 0:03:38]} b5 {[%emt 0:11:10]} 15. Bd3 {[%emt 0:03:02]} c5 {[%emt 0:06:17]} 16. Qd2 {[%emt 0:09:10]} cxd4 {[%emt 0:04:10]} 17. Nxd4 {[%emt 0:01:22]} Bc5 {[%emt 0:00:35]} 18. Be3 {[%emt 0:01:02]} f4 {[%emt 0:02:01]} 19. Bf2 {[%emt 0:00:33]} e5 {[%emt 0:02:32]} 20. Nb3 {[%emt 0:01:08]} Bxf2+ {[%emt 0:01:29]} 21. Qxf2 {[%emt 0:01:47]} a6 {[%emt 0:06:55]} 22. Rfd1 {[%emt 0:04:22]} Ne6 {[%emt 0:02:04]} 23. a4 {[%emt 0:06:03]} Qe8 {[%emt 0:06:32]} 24. axb5 {[%emt 0:01:43]} axb5 {[%emt 0:00:08]} 25. Qb6 {[%emt 0:02:52]} Qg6 {[%emt 0:08:37]} 26. Bxb5 {[%emt 0:07:28]} Bxb5 {[%emt 0:04:30]} 27. Qxb5 {[%emt 0:00:40]} Ng5 {[%emt 0:00:35]} 28. Kh1 {[%emt 0:00:44]} Rb8 {[%emt 0:03:09]} 29. Qc4 {[%emt 0:04:06]} Nxh3 {[%emt 0:02:49]} 30. gxh3 {[%emt 0:02:15]} Qg3 {[%emt 0:00:25]} 31. Nd2 {[%emt 0:03:18]} Qxh3+ {[%emt 0:01:08]} 32. Kg1 {[%emt 0:00:11]} Qg3+ {[%emt 0:00:55]} 33. Kf1 {[%emt 0:00:15]} Ng4 34. fxg4 {[%emt 0:06:25]} f3 {[%emt 0:03:07]} 35. Rdc1 {[%emt 0:00:31]} Rxb2 {[%emt 0:02:23]} 36. Re1 {[%emt 0:00:00]} 0-1

[Event "DEN-ch KK 2020"]
[Site "Svendborg"]
[Date "2020.10.13"]
[Round "2.2"]
[White "Rewitz, Poul"]
[Black "Nilssen, Ellen Fredericia"]
[Result "1-0"]
[ECO "A35"]
[WhiteElo "2222"]
[BlackElo "2209"]
[Annotator "ChessBase"]
[PlyCount "117"]
[EventDate "2020.10.09"]
[EventType "tourn"]
[EventCountry "DEN"]
[SourceTitle "playchess.com"]
[Source "ChessBase"]
[SourceQuality "1"]
[TimeControl "40/5400+30:1800+30"]

1. c4 {[%emt 0:00:00]} c5 {[%emt 0:00:00]} 2. Nc3 {[%emt 0:00:37]} Nc6 {[%emt 0:00:00]} 3. Nf3 {[%emt 0:00:43]} g6 {[%emt 0:00:00]} 4. d4 cxd4 {[%emt 0:00:04]} 5. Nxd4 {[%emt 0:01:49]} Bg7 {[%emt 0:00:08]} 6. Nc2 {[%emt 0:02:08]} Bxc3+ {[%emt 0:00:06]} 7. bxc3 {[%emt 0:00:06]} Qa5 {[%emt 0:00:04]} 8. Bd2 {[%emt 0:06:20]} Nf6 {[%emt 0:00:06]} 9. f3 {[%emt 0:03:08]} d6 {[%emt 0:00:12]} 10. e4 {[%emt 0:01:31]} O-O {[%emt 0:05:53]} 11. Be2 {[%emt 0:00:44]} Be6 {[%emt 0:13:52]} 12. Nd4 {[%emt 0:04:19]} Rac8 {[%emt 0:06:56]} 13. Rb1 {[%emt 0:16:22]} Nxd4 {[%emt 0:12:07]} 14. cxd4 {[%emt 0:00:27]} Qxa2 {[%emt 0:00:03]} 15. c5 {[%emt 0:12:58]} dxc5 {[%emt 0:06:41]} 16. d5 {[%emt 0:00:54]} Bd7 {[%emt 0:00:32]} 17. Qc1 {[%emt 0:05:34]} c4 {[%emt 0:06:03]} 18. Bc3 {[%emt 0:03:55]} Qa6 {[%emt 0:03:17]} 19. O-O {[%emt 0:03:31]} b5 {[%emt 0:03:35]} 20. Rd1 {[%emt 0:00:27]} Ne8 {[%emt 0:06:58]} 21. Qh6 {[%emt 0:05:03]} Qb6+ {[%emt 0:04:07]} 22. Kf1 {[%emt 0:02:41]} a5 {[%emt 0:03:28]} 23. d6 {[%emt 0:04:46]} e6 {[%emt 0:00:31]} 24. g4 {[%emt 0:05:25]} b4 {[%emt 0:02:33]} 25. h4 {[%emt 0:02:40]} Qc6 {[%emt 0:02:40]} 26. Bh8 {[%emt 0:02:01]} c3 {[%emt 0:02:55]} 27. Rbc1 {[%emt 0:01:16]} a4 {[%emt 0:02:41]} 28. Kg2 {[%emt 0:00:56]} c2 {[%emt 0:04:25]} 29. Rd3 {[%emt 0:02:55]} b3 {[%emt 0:01:03]} 30. h5 {[%emt 0:00:18]} Qb6 {[%emt 0:03:52]} 31. Bb2 {[%emt 0:03:24]} a3 {[%emt 0:06:01]} 32. Rh1 {[%emt 0:01:10]} c1=Q {[%emt 0:00:05]} 33. Bxc1 {[%emt 0:01:22]} Rxc1 {[%emt 0:00:03]} 34. Qxc1 {[%emt 0:02:28]} b2 {[%emt 0:00:06]} 35. Qb1 {[%emt 0:01:35]} e5 {[%emt 0:03:28]} 36. Rxa3 {[%emt 0:00:25]} Nxd6 {[%emt 0:00:12]} 37. Ra6 {[%emt 0:01:14]} Qb4 {[%emt 0:00:52]} 38. Rd1 {[%emt 0:00:47]} Bb5 {[%emt 0:01:35]} 39. Rb6 {[%emt 0:00:58]} Ra8 {[%emt 0:01:33]} 40. Rdxd6 {[%emt 0:01:04]} Ra1 {[%emt 0:00:22]} 41. h6 {[%emt 0:09:15]} Kf8 {[%emt 0:00:39]} 42. Rxb5 {[%emt 0:11:07]} Qxb5 {[%emt 0:03:05]} 43. Bxb5 {[%emt 0:00:24]} Rxb1 {[%emt 0:00:06]} 44. Bd3 {[%emt 0:02:28]} Rd1 {[%emt 0:00:29]} 45. Rb6 {[%emt 0:00:25]} Rxd3 {[%emt 0:03:37]} 46. Rxb2 {[%emt 0:00:07]} Ke7 {[%emt 0:01:46]} 47. g5 {[%emt 0:01:12]} f6 {[%emt 0:03:59]} 48. Rb7+ {[%emt 0:01:17]} Rd7 {[%emt 0:00:07]} 49. gxf6+ {[%emt 0:00:27]} Ke6 {[%emt 0:01:37]} 50. Rb6+ {[%emt 0:00:59]} Kf7 {[%emt 0:00:32]} 51. Kg3 {[%emt 0:01:16]} Rd1 {[%emt 0:03:42]} 52. f4 {[%emt 0:01:34]} Rd3+ {[%emt 0:02:02]} 53. Kf2 {[%emt 0:01:22]} exf4 {[%emt 0:00:07]} 54. e5 {[%emt 0:00:14]} Rd8 {[%emt 0:10:36]} 55. Rb7+ {[%emt 0:01:11]} Ke6 {[%emt 0:03:26]} 56. Re7+ {[%emt 0:00:26]} Kf5 {[%emt 0:00:23]} 57. f7 {[%emt 0:00:26]} Rf8 {[%emt 0:00:03]} 58. e6 {[%emt 0:00:38]} Ke5 {[%emt 0:00:56]} 59. Re8 {[%emt 0:00:21]} 1-0

[Event "DEN-ch KK 2020"]
[Site "Svendborg"]
[Date "2020.10.13"]
[Round "2.3"]
[White "Rey Malde, Henrique"]
[Black "Easwaralingam, Adesh"]
[Result "1-0"]
[ECO "B48"]
[WhiteElo "2201"]
[BlackElo "2110"]
[Annotator "ChessBase"]
[PlyCount "105"]
[EventDate "2020.10.09"]
[EventType "tourn"]
[EventCountry "DEN"]
[SourceTitle "playchess.com"]
[Source "ChessBase"]
[SourceQuality "1"]
[TimeControl "40/5400+30:1800+30"]

1. e4 {[%emt 0:00:00]} c5 {[%emt 0:00:00]} 2. Nf3 {[%emt 0:00:00]} e6 {[%emt 0:00:00]} 3. d4 {[%emt 0:00:00]} cxd4 {[%emt 0:00:00]} 4. Nxd4 {[%emt 0:00:03]} Nc6 {[%emt 0:00:01]} 5. Nc3 {[%emt 0:00:22]} Qc7 {[%emt 0:00:08]} 6. Be3 {[%emt 0:00:19]} a6 {[%emt 0:00:08]} 7. Qd2 {[%emt 0:00:20]} Nf6 {[%emt 0:00:20]} 8. O-O-O {[%emt 0:00:14]} Be7 {[%emt 0:00:27]} 9. f4 {[%emt 0:00:19]} b5 {[%emt 0:01:17]} 10. e5 {[%emt 0:00:45]} b4 {[%emt 0:00:14]} 11. Ncb5 {[%emt 0:00:58]} axb5 {[%emt 0:03:01]} 12. Nxb5 {[%emt 0:00:21]} Qb8 {[%emt 0:03:38]} 13. exf6 {[%emt 0:00:12]} gxf6 {[%emt 0:04:13]} 14. Kb1 {[%emt 0:01:16]} Ra5 {[%emt 0:05:54]} 15. Nd6+ {[%emt 0:03:16]} Bxd6 {[%emt 0:01:51]} 16. Qxd6 {[%emt 0:00:07]} Qxd6 {[%emt 0:02:11]} 17. Rxd6 {[%emt 0:00:08]} Ke7 {[%emt 0:01:09]} 18. Rd2 {[%emt 0:01:55]} d5 {[%emt 0:16:08]} 19. Bb6 {[%emt 0:05:51]} Ra8 {[%emt 0:00:08]} 20. Bc5+ {[%emt 0:05:22]} Kd7 {[%emt 0:00:50]} 21. Bb5 {[%emt 0:00:18]} Rb8 {[%emt 0:01:08]} 22. Bxc6+ {[%emt 0:07:47]} Kxc6 {[%emt 0:00:06]} 23. Bd4 {[%emt 0:00:04]} Bd7 {[%emt 0:02:21]} 24. Bxf6 {[%emt 0:00:44]} Rhg8 {[%emt 0:01:41]} 25. b3 {[%emt 0:04:13]} Rb5 {[%emt 0:03:07]} 26. Re1 {[%emt 0:05:15]} Rg6 {[%emt 0:03:12]} 27. Be7 {[%emt 0:02:31]} Rg4 {[%emt 0:02:22]} 28. Bg5 {[%emt 0:08:28]} Rb8 {[%emt 0:01:06]} 29. g3 {[%emt 0:05:14]} Rg8 {[%emt 0:02:01]} 30. Be7 {[%emt 0:00:28]} h5 {[%emt 0:09:39]} 31. Re5 {[%emt 0:07:19]} h4 {[%emt 0:03:26]} 32. Bxh4 {[%emt 0:02:05]} Rxh4 {[%emt 0:03:25]} 33. gxh4 {[%emt 0:00:09]} Rh8 {[%emt 0:01:42]} 34. Rg5 {[%emt 0:05:06]} Rxh4 {[%emt 0:00:39]} 35. Rf2 {[%emt 0:00:07]} Be8 {[%emt 0:03:52]} 36. Rg8 {[%emt 0:01:12]} Kd7 {[%emt 0:00:21]} 37. Kb2 {[%emt 0:00:55]} Ke7 {[%emt 0:00:54]} 38. a4 {[%emt 0:02:05]} bxa3+ {[%emt 0:01:00]} 39. Kxa3 {[%emt 0:00:09]} f6 {[%emt 0:04:38]} 40. Rg7+ {[%emt 0:01:37]} Bf7 {[%emt 0:00:25]} 41. b4 {[%emt 0:31:40]} Kf8 {[%emt 0:31:42]} 42. Rg3 {[%emt 0:00:35]} Be8 {[%emt 0:00:40]} 43. Rc3 {[%emt 0:07:06]} Ke7 {[%emt 0:05:58]} 44. Rc8 {[%emt 0:02:21]} Rh3+ {[%emt 0:01:41]} 45. Kb2 {[%emt 0:00:29]} Rh4 {[%emt 0:00:00]} 46. Rb8 {[%emt 0:00:00]} Rg4 {[%emt 0:00:00]} 47. Rf3 {[%emt 0:00:00]} e5 {[%emt 0:00:00]} 48. fxe5 {[%emt 0:00:00]} fxe5 {[%emt 0:00:00]} 49. Ra3 {[%emt 0:00:00]} Bd7 {[%emt 0:00:00]} 50. Ra7 {[%emt 0:00:00]} Rg6 {[%emt 0:00:07]} 51. Rbb7 {[%emt 0:00:00]} Rd6 {[%emt 0:00:13]} 52. Kc3 {[%emt 0:00:00]} Ke6 {[%emt 0:00:27]} 53. Rxd7 {[%emt 0:00:00]} 1-0

[Event "DEN-ch KK 2020"]
[Site "Svendborg"]
[Date "2020.10.13"]
[Round "2.5"]
[White "Matthiesen, Martin"]
[Black "Kolbak, Jens"]
[Result "1/2-1/2"]
[ECO "D35"]
[WhiteElo "2301"]
[BlackElo "2114"]
[Annotator "ChessBase"]
[PlyCount "139"]
[EventDate "2020.10.09"]
[EventType "tourn"]
[EventCountry "DEN"]
[SourceTitle "playchess.com"]
[Source "ChessBase"]
[SourceQuality "1"]
[TimeControl "40/5400+30:1800+30"]

1. d4 {[%emt 0:00:00]} Nf6 {[%emt 0:00:00]} 2. c4 {[%emt 0:00:00]} e6 {[%emt 0:00:20]} 3. Nc3 {[%emt 0:00:00]} d5 {[%emt 0:00:44]} 4. cxd5 {[%emt 0:00:11]} exd5 {[%emt 0:00:08]} 5. Bg5 {[%emt 0:00:05]} Be7 {[%emt 0:02:55]} 6. e3 {[%emt 0:00:20]} c6 {[%emt 0:00:47]} 7. Bd3 {[%emt 0:00:22]} Nbd7 {[%emt 0:00:53]} 8. Nge2 {[%emt 0:00:36]} Nh5 {[%emt 0:02:50]} 9. Bxe7 {[%emt 0:00:11]} Qxe7 {[%emt 0:00:05]} 10. g4 {[%emt 0:04:23]} Nhf6 {[%emt 0:00:07]} 11. Ng3 {[%emt 0:00:23]} g6 {[%emt 0:11:55]} 12. Qe2 {[%emt 0:16:04]} Nb6 {[%emt 0:03:56]} 13. g5 {[%emt 0:00:53]} Ng8 {[%emt 0:02:17]} 14. h4 {[%emt 0:00:18]} Be6 {[%emt 0:03:06]} 15. f4 {[%emt 0:26:24]} Qd7 {[%emt 0:02:22]} 16. h5 {[%emt 0:06:26]} Ne7 {[%emt 0:02:31]} 17. hxg6 {[%emt 0:09:52]} fxg6 {[%emt 0:00:09]} 18. Rh4 {[%emt 0:00:24]} O-O-O {[%emt 0:01:17]} 19. O-O-O {[%emt 0:00:27]} Nf5 {[%emt 0:03:50]} 20. Nxf5 {[%emt 0:01:15]} Bxf5 {[%emt 0:00:11]} 21. Bxf5 {[%emt 0:10:43]} Qxf5 {[%emt 0:00:08]} 22. b3 {[%emt 0:00:45]} Rde8 {[%emt 0:13:17]} 23. Rdh1 {[%emt 0:05:22]} Re7 {[%emt 0:00:21]} 24. Nd1 {[%emt 0:11:55]} Nd7 {[%emt 0:04:49]} 25. Qc2 {[%emt 0:01:52]} Qe6 {[%emt 0:08:47]} 26. Rh6 {[%emt 0:01:12]} Nf8 {[%emt 0:05:50]} 27. R1h3 {[%emt 0:00:24]} Rg8 {[%emt 0:03:46]} 28. Nf2 {[%emt 0:01:26]} Rgg7 {[%emt 0:00:48]} 29. Nd3 {[%emt 0:00:59]} Nd7 {[%emt 0:00:47]} 30. Qh2 {[%emt 0:00:49]} Qe4 {[%emt 0:12:36]} 31. Kd2 {[%emt 0:00:18]} b6 {[%emt 0:00:27]} 32. Qh1 {[%emt 0:00:44]} Qxh1 {[%emt 0:02:17]} 33. Rxh1 {[%emt 0:00:03]} Kb7 {[%emt 0:00:29]} 34. b4 {[%emt 0:00:20]} Nf8 {[%emt 0:03:55]} 35. a4 {[%emt 0:00:56]} Rc7 {[%emt 0:00:22]} 36. Ne5 {[%emt 0:00:42]} c5 {[%emt 0:00:38]} 37. bxc5 {[%emt 0:00:37]} bxc5 {[%emt 0:00:07]} 38. Rb1+ {[%emt 0:00:05]} Kc8 {[%emt 0:00:36]} 39. Rb5 {[%emt 0:00:20]} cxd4 {[%emt 0:03:50]} 40. exd4 {[%emt 0:00:05]} Ne6 {[%emt 0:00:24]} 41. f5 {[%emt 0:30:24]} Nxg5 {[%emt 0:00:57]} 42. fxg6 {[%emt 0:00:03]} Ne4+ {[%emt 0:10:52]} 43. Ke3 {[%emt 0:00:05]} Nf6 {[%emt 0:07:37]} 44. gxh7 {[%emt 0:01:20]} Nxh7 {[%emt 0:00:07]} 45. Rxd5 {[%emt 0:00:30]} Rg8 {[%emt 0:07:21]} 46. Rc6 {[%emt 0:00:54]} Rgg7 {[%emt 0:00:27]} 47. Rcd6 {[%emt 0:00:39]} Rg8 {[%emt 0:00:39]} 48. Rc6 {[%emt 0:00:29]} Rgg7 {[%emt 0:01:21]} 49. Rcd6 {[%emt 0:00:05]} Rg8 {[%emt 0:00:29]} 50. a5 {[%emt 0:00:16]} Re8 {[%emt 0:00:54]} 51. Kd3 {[%emt 0:00:39]} Nf8 {[%emt 0:01:18]} 52. a6 {[%emt 0:00:28]} Ne6 {[%emt 0:00:24]} 53. Ke4 {[%emt 0:01:02]} Rc1 {[%emt 0:01:52]} 54. Ke3 {[%emt 0:01:02]} Nc7 {[%emt 0:01:12]} 55. Ra5 {[%emt 0:00:26]} Re6 {[%emt 0:02:49]} 56. Rxe6 {[%emt 0:00:29]} Nxe6 {[%emt 0:00:06]} 57. Nd3 {[%emt 0:00:23]} Rh1 {[%emt 0:00:56]} 58. d5 {[%emt 0:00:45]} Nc7 {[%emt 0:01:42]} 59. d6 {[%emt 0:00:42]} Ne6 {[%emt 0:00:30]} 60. Ne5 {[%emt 0:00:23]} Rd1 {[%emt 0:00:43]} 61. d7+ {[%emt 0:00:18]} Kc7 {[%emt 0:00:08]} 62. Rb5 {[%emt 0:00:24]} Nd8 {[%emt 0:01:25]} 63. Ke4 {[%emt 0:00:41]} Ra1 {[%emt 0:00:56]} 64. Rc5+ {[%emt 0:00:17]} Kd6 {[%emt 0:00:16]} 65. Rc8 {[%emt 0:00:28]} Ke7 {[%emt 0:00:33]} 66. Kd5 {[%emt 0:00:53]} Rxa6 {[%emt 0:00:24]} 67. Rxd8 {[%emt 0:00:41]} Kxd8 {[%emt 0:00:16]} 68. Nc6+ {[%emt 0:00:06]} Rxc6 {[%emt 0:00:53]} 69. Kxc6 {[%emt 0:00:05]} a5 {[%emt 0:00:08]} 70. Kb5 {[%emt 0:00:05]} 1/2-1/2

[Event "DEN-ch KK 2020"]
[Site "Svendborg"]
[Date "2020.10.13"]
[Round "2.6"]
[White "Georgescu, Lena"]
[Black "Kistrup, Nicolai"]
[Result "1-0"]
[ECO "B48"]
[WhiteElo "2276"]
[BlackElo "2128"]
[Annotator "ChessBase"]
[PlyCount "47"]
[EventDate "2020.10.09"]
[EventType "tourn"]
[EventCountry "DEN"]
[SourceTitle "playchess.com"]
[Source "ChessBase"]
[SourceQuality "1"]
[TimeControl "40/5400+30:1800+30"]

1. e4 {[%emt 0:00:00]} c5 {[%emt 0:00:00]} 2. Nf3 {[%emt 0:00:00]} e6 {[%emt 0:00:00]} 3. d4 {[%emt 0:00:00]} cxd4 {[%emt 0:00:00]} 4. Nxd4 {[%emt 0:00:00]} Nc6 {[%emt 0:00:10]} 5. Nc3 {[%emt 0:00:00]} Qc7 {[%emt 0:00:17]} 6. Be3 {[%emt 0:00:00]} a6 {[%emt 0:00:15]} 7. a3 {[%emt 0:00:02]} Be7 {[%emt 0:00:39]} 8. Qf3 {[%emt 0:00:16]} Nf6 {[%emt 0:15:25]} 9. O-O-O {[%emt 0:05:35]} O-O {[%emt 0:23:28]} 10. g4 {[%emt 0:21:23]} d6 {[%emt 0:35:40]} 11. g5 {[%emt 0:02:55]} Nd7 {[%emt 0:01:47]} 12. Qg3 {[%emt 0:02:52]} b5 {[%emt 0:09:50]} 13. h4 {[%emt 0:04:23]} Bb7 {[%emt 0:02:54]} 14. g6 {[%emt 0:01:47]} hxg6 {[%emt 0:04:18]} 15. h5 {[%emt 0:00:31]} gxh5 {[%emt 0:01:10]} 16. Rxh5 {[%emt 0:02:19]} Bf6 17. Bc4 Nxd4 {[%emt 0:02:00]} 18. Rdh1 {[%emt 0:38:20]} g6 {[%emt 0:00:23]} 19. Qh3 {[%emt 0:01:01]} Bh4 {[%emt 0:00:41]} 20. Rh8+ {[%emt 0:03:45]} Kg7 21. Rh7+ {[%emt 0:00:51]} Kg8 {[%emt 0:00:58]} 22. Qxh4 {[%emt 0:00:27]} Nf5 {[%emt 0:00:33]} 23. exf5 {[%emt 0:02:13]} Bxh1 {[%emt 0:00:29]} 24. Qh6 {[%emt 0:00:20]} 1-0

[Event "DEN-ch KK 2020"]
[Site "Svendborg"]
[Date "2020.10.13"]
[Round "2.7"]
[White "Thorsbro, Peter"]
[Black "Laursen, Niels Norskov"]
[Result "1/2-1/2"]
[ECO "A48"]
[WhiteElo "2165"]
[BlackElo "2247"]
[Annotator "ChessBase"]
[PlyCount "53"]
[EventDate "2020.10.09"]
[EventType "tourn"]
[EventCountry "DEN"]
[SourceTitle "playchess.com"]
[Source "ChessBase"]
[SourceQuality "1"]
[TimeControl "40/5400+30:1800+30"]

1. d4 {[%emt 0:00:15]} Nf6 {[%emt 0:00:00]} 2. Nf3 {[%emt 0:00:34]} g6 {[%emt 0:00:00]} 3. Bf4 {[%emt 0:00:43]} Bg7 {[%emt 0:00:17]} 4. Nbd2 {[%emt 0:00:23]} O-O {[%emt 0:01:58]} 5. e3 {[%emt 0:01:34]} d6 {[%emt 0:00:36]} 6. h3 {[%emt 0:00:03]} Nc6 {[%emt 0:00:45]} 7. c4 {[%emt 0:05:03]} Nd7 {[%emt 0:02:44]} 8. d5 {[%emt 0:12:48]} Nce5 {[%emt 0:00:21]} 9. Qc2 {[%emt 0:00:22]} c6 {[%emt 0:08:43]} 10. dxc6 {[%emt 0:15:53]} Nxf3+ {[%emt 0:05:52]} 11. Nxf3 {[%emt 0:00:38]} bxc6 {[%emt 0:00:19]} 12. Rb1 {[%emt 0:07:57]} c5 {[%emt 0:09:10]} 13. b3 {[%emt 0:02:46]} Qa5+ {[%emt 0:03:42]} 14. Nd2 {[%emt 0:00:05]} Bb7 {[%emt 0:01:30]} 15. f3 {[%emt 0:09:42]} Ne5 {[%emt 0:08:07]} 16. Bxe5 {[%emt 0:07:49]} Bxe5 {[%emt 0:00:21]} 17. Bd3 {[%emt 0:00:56]} f5 {[%emt 0:15:51]} 18. O-O {[%emt 0:07:13]} Qc3 {[%emt 0:07:16]} 19. Rbd1 {[%emt 0:01:41]} Bc6 {[%emt 0:02:54]} 20. Qxc3 {[%emt 0:04:42]} Bxc3 {[%emt 0:00:06]} 21. Nb1 {[%emt 0:00:17]} Bg7 {[%emt 0:01:53]} 22. Bc2 {[%emt 0:00:24]} a5 {[%emt 0:06:41]} 23. a4 {[%emt 0:00:04]} f4 {[%emt 0:02:00]} 24. exf4 {[%emt 0:00:23]} Rxf4 {[%emt 0:00:45]} 25. Rfe1 {[%emt 0:01:48]} Be5 {[%emt 0:03:42]} 26. Rd3 {[%emt 0:03:01]} Rd4 {[%emt 0:01:47]} 27. Na3 {[%emt 0:03:40]} 1/2-1/2

[Event "DEN-ch KK 2020"]
[Site "Svendborg"]
[Date "2020.10.13"]
[Round "2.9"]
[White "Rossen, Claus"]
[Black "Thuesen, Mogens"]
[Result "0-1"]
[ECO "C15"]
[WhiteElo "2099"]
[BlackElo "2210"]
[Annotator "ChessBase"]
[PlyCount "96"]
[EventDate "2020.10.09"]
[EventType "tourn"]
[EventCountry "DEN"]
[SourceTitle "playchess.com"]
[Source "ChessBase"]
[SourceQuality "1"]
[TimeControl "40/5400+30:1800+30"]

1. e4 {[%emt 0:00:00]} e6 {[%emt 0:00:29]} 2. d4 {[%emt 0:00:00]} d5 {[%emt 0:00:05]} 3. Nc3 {[%emt 0:00:00]} Bb4 {[%emt 0:01:19]} 4. a3 {[%emt 0:00:00]} Bxc3+ {[%emt 0:00:06]} 5. bxc3 {[%emt 0:00:00]} dxe4 {[%emt 0:00:10]} 6. Qg4 {[%emt 0:00:00]} Nf6 {[%emt 0:00:11]} 7. Qxg7 {[%emt 0:00:08]} Rg8 {[%emt 0:00:08]} 8. Qh6 {[%emt 0:00:04]} Rg6 {[%emt 0:00:52]} 9. Qe3 {[%emt 0:00:15]} b6 {[%emt 0:04:02]} 10. f3 {[%emt 0:04:11]} Bb7 {[%emt 0:01:06]} 11. Bb2 {[%emt 0:01:01]} Nbd7 {[%emt 0:08:55]} 12. O-O-O {[%emt 0:01:58]} Qe7 {[%emt 0:01:54]} 13. fxe4 {[%emt 0:04:20]} Nxe4 {[%emt 0:06:28]} 14. Nf3 {[%emt 0:03:39]} O-O-O {[%emt 0:02:19]} 15. c4 {[%emt 0:07:13]} f5 {[%emt 0:12:42]} 16. Rg1 {[%emt 0:17:02]} Ndf6 {[%emt 0:12:05]} 17. Ne5 {[%emt 0:02:04]} Ng4 {[%emt 0:00:28]} 18. Nxg4 {[%emt 0:15:07]} Rxg4 {[%emt 0:01:07]} 19. Be2 {[%emt 0:01:30]} Rh4 {[%emt 0:04:07]} 20. h3 {[%emt 0:12:28]} Rg8 {[%emt 0:04:56]} 21. g4 {[%emt 0:10:30]} f4 {[%emt 0:10:43]} 22. Qxf4 {[%emt 0:01:52]} Rxh3 {[%emt 0:00:34]} 23. Rd3 {[%emt 0:07:45]} Ng5 {[%emt 0:07:24]} 24. Rf1 {[%emt 0:03:13]} Bg2 {[%emt 0:02:19]} 25. Rxh3 {[%emt 0:02:24]} Nxh3 {[%emt 0:00:26]} 26. Qf6 {[%emt 0:00:07]} Qe8 {[%emt 0:04:15]} 27. Re1 {[%emt 0:01:01]} Rf8 {[%emt 0:01:57]} 28. Qe5 {[%emt 0:01:15]} Qc6 {[%emt 0:02:26]} 29. Bd3 {[%emt 0:00:34]} Nf4 {[%emt 0:00:56]} 30. Bxh7 {[%emt 0:02:46]} Qxc4 {[%emt 0:00:08]} 31. Be4 {[%emt 0:00:20]} Kb8 {[%emt 0:02:26]} 32. Kb1 {[%emt 0:00:39]} Bxe4 {[%emt 0:01:52]} 33. Qxe4 {[%emt 0:00:12]} Nd5 {[%emt 0:01:18]} 34. Qxe6 {[%emt 0:01:26]} Rf2 {[%emt 0:01:42]} 35. Qe8+ {[%emt 0:00:20]} Kb7 {[%emt 0:00:08]} 36. Qe4 {[%emt 0:00:02]} c6 {[%emt 0:01:20]} 37. g5 {[%emt 0:01:28]} Qb5 {[%emt 0:02:10]} 38. Qh7+ {[%emt 0:00:31]} Ka6 {[%emt 0:00:05]} 39. Qd3 {[%emt 0:00:11]} Qxd3 {[%emt 0:00:43]} 40. cxd3 {[%emt 0:00:01]} Rg2 {[%emt 0:00:36]} 41. Ka2 {[%emt 0:08:58]} Rxg5 {[%emt 0:01:28]} 42. Kb3 {[%emt 0:00:39]} Rg3 {[%emt 0:02:37]} 43. Re6 {[%emt 0:05:12]} Kb7 {[%emt 0:00:34]} 44. Kc2 {[%emt 0:00:25]} Rg2+ {[%emt 0:02:51]} 45. Kc1 {[%emt 0:01:38]} Nf4 {[%emt 0:02:37]} 46. Re3 {[%emt 0:00:21]} Ka6 {[%emt 0:02:39]} 47. Rf3 {[%emt 0:01:21]} Ne2+ {[%emt 0:03:12]} 48. Kd1 {[%emt 0:01:08]} Ng1 0-1